{"text_format":"1","workbook":"xlsx","n_sheets":2,"sheets":["downloadJOKER+","controleJOKER"],"not_rendered":{"charts":0,"images":0,"macros":1,"external_links":0,"defined_names":5,"comments":0,"pivot_tables":0},"unopened":[],"bounds":{"document_bytes":16777216,"sheet_cells":100000,"rows_first":2000,"rows_last":500,"rows_between":2000,"halvings":0,"cell_chars":16384,"cell_head_chars":4096},"cells_cut":0,"cells_raw":0,"read":"whole","date_system":"1900"}

{"sheet":"downloadJOKER+","index":0,"n_rows":37,"n_cols":8,"rows_kept":37,"cut":false,"hidden":false,"merged":[]}
["Nationale Loterij OfficiÃ«le Site","Spelen en WinnenTrekkingsspelenJoker +ResultatenRecentste resultaten",null,null,null,null,null,"Zoeken"]
["Speel Online",null,null,null,null,null,null,"ZoekenZoeken:"]
[null,"Recentste resultaten"]
["Trekkingsspelen"]
[]
["Resultaten"]
["Lotto"]
["Euro Millions","Trekking van zaterdag 30/03/2013"]
["Joker +"]
["Hoe Spelen?","Joker+ trekking"]
["Resultaten"]
["Gewonnen! Wat nu?",4,0,5,9,4,1]
["Spelen in groep","Steenbok"]
["Reglement"]
["FAQ","Winstverdelingtabel"]
["Multi Quick Pick"]
["Keno"]
["Pick3"]
["Super Lotto","Winstverdeling"]
["Lotto Extra","Juiste nummers","Winnaars","Winst"]
[null,"Jackpot (6 nummers + sterrenbeeld)","Volgende trekking: 02/04/2013 : 350.000 â\u0082¬ * te winnen"]
[null,"6 nummers",0,20000]
[null,"5 nummers",5,2000]
["Krasspelen","4 nummers",62,200]
[null,"3 nummers",554,20]
[null,"2 nummers",5638,5]
["E-games","1 nummer",56352,2]
[null,"Sterrenbeeld",22775,1.5]
[null,"Volgende trekking:"]
["Sportweddenschappen","dinsdag 02/04/2013 : 350.000 â\u0082¬ te winnen *"]
[null,"* Wanneer u de enige winnaar bent in rang 1"]
["Lotto","Vorige resultaten"]
["Euro Millions","Resultaten downloaden"]
["Joker+","Andere trekking"]
["Keno"]
["Pick-3"]
["Win for Life"]

{"sheet":"controleJOKER","index":1,"n_rows":21,"n_cols":37,"rows_kept":21,"cut":false,"hidden":false,"merged":[[10,8,10,10],[11,8,11,10],[12,8,12,10],[2,1,2,10],[4,1,4,6],[4,8,4,10],[5,8,5,10],[7,8,7,10],[8,8,8,10],[9,8,9,10]]}
[]
[]
[null,{"$f":"REPLACE('downloadJOKER+'!B8,1,13,\"\")","v":"zaterdag 30/03/2013"}]
[]
[null,"JOKER TREKKING LOTTO",null,null,null,null,null,null,"STERRENBEELD"]
[null,{"$f":"'downloadJOKER+'!B12","v":4},{"$f":"'downloadJOKER+'!C12","v":0},{"$f":"'downloadJOKER+'!D12","v":5},{"$f":"'downloadJOKER+'!E12","v":9},{"$f":"'downloadJOKER+'!F12","v":4},{"$f":"'downloadJOKER+'!G12","v":1},null,{"$f":"'downloadJOKER+'!B13","v":"Steenbok"},null,null,null,null,null,"Ik ben bang dat dat niet in één formule te vangen is.",null,null,null,null,null,null,null,null,null,null,null,null,null,null,null,null,"Deze kolommen kun je eventueel verbergen"]
[null,null,null,null,null,null,null,null,null,null,null,null,null,null,null,null,null,null,"Hoe krijg ik juiste formule in cellen ?"]
[null,4,1,2,3,2,1,null,"Weegschaal",null,null,null,null,null,1,{"$f":"SUM(AF8:AK8)","v":1},null,null,"telt aantal OPEENVOLGENDE cijfers dat gelijk is aan trekking.",null,null,null,null,null,null,null,null,null,null,null,null,{"$f":"--(B8=B$6)","v":1},{"$f":"IF(AF8=1,--(C8=C$6),\"\")","v":0},{"$f":"IF(AG8=1,--(D8=D$6),\"\")","v":""},{"$f":"IF(AH8=1,--(E8=E$6),\"\")","v":""},{"$f":"IF(AI8=1,--(F8=F$6),\"\")","v":""},{"$f":"IF(AJ8=1,--(G8=G$6),\"\")","v":""}]
[null,4,0,3,9,4,1,null,"Steenbok",null,null,null,null,null,2,{"$f":"SUM(AF9:AK9)","v":2},null,null,"om geldig te zijn moet het meest LINKSE cijfer steeds juist zijn ",null,null,null,null,null,null,null,null,null,null,null,null,{"$f":"--(B9=B$6)","v":1},{"$f":"IF(AF9=1,--(C9=C$6),\"\")","v":1},0,"","",""]
[null,8,0,5,7,8,9,null,"Stier",null,null,null,null,null,0,0,null,null,null,null,null,null,null,null,null,null,null,null,null,null,null,0,{"$f":"IF(AF10=1,--(C10=C$6),\"\")","v":""},"","","",""]
[null,4,1,5,9,1,2,null,"Steenbok",null,null,null,null,null,1,1,null,null,null,null,null,null,null,null,null,null,null,null,null,null,null,1,{"$f":"IF(AF11=1,--(C11=C$6),\"\")","v":0},"","","",""]
[null,4,0,5,9,4,1,null,"Tweelingen",null,null,null,null,null,6,6,null,null,null,null,null,null,null,null,null,null,null,null,null,null,null,1,{"$f":"IF(AF12=1,--(C12=C$6),\"\")","v":1},1,1,1,1]
[null,4,0,5,9,3,1,null,"Boogschutter",null,null,null,null,null,4,4,null,null,null,null,null,null,null,null,null,null,null,null,null,null,null,1,{"$f":"IF(AF13=1,--(C13=C$6),\"\")","v":1},1,1,0,""]
[]
[]
[null,4,1,2,3,2,1,null,null,null,null,null,null,null,1,{"$f":"SUM(AF16:AK16)","v":1},null,null,"telt aantal OPEENVOLGENDE cijfers dat gelijk is aan trekking.",null,null,null,null,null,null,null,null,null,null,null,null,{"$f":"--(G16=G$6)","v":1},{"$f":"IF(AF16=1,--(F16=F$6),\"\")","v":0},{"$f":"IF(AG16=1,--(E16=E$6),\"\")","v":""},{"$f":"IF(AH16=1,--(D16=D$6),\"\")","v":""},{"$f":"IF(AI16=1,--(C16=C$6),\"\")","v":""},{"$f":"IF(AJ16=1,--(B16=B$6),\"\")","v":""}]
[null,4,0,3,9,4,1,null,null,null,null,null,null,null,3,{"$f":"SUM(AF17:AK17)","v":3},null,null,"om geldig te zijn moet het meest RECHTSE cijfer steeds juist zijn ",null,null,null,null,null,null,null,null,null,null,null,null,{"$f":"--(G17=G$6)","v":1},{"$f":"IF(AF17=1,--(F17=F$6),\"\")","v":1},{"$f":"IF(AG17=1,--(E17=E$6),\"\")","v":1},{"$f":"IF(AH17=1,--(D17=D$6),\"\")","v":0},{"$f":"IF(AI17=1,--(C17=C$6),\"\")","v":""},{"$f":"IF(AJ17=1,--(B17=B$6),\"\")","v":""}]
[null,8,0,5,7,8,9,null,null,null,null,null,null,null,0,0,null,null,null,null,null,null,null,null,null,null,null,null,null,null,null,0,"","","","",""]
[null,4,1,5,9,2,1,null,null,null,null,null,null,null,1,1,null,null,null,null,null,null,null,null,null,null,null,null,null,null,null,1,0,"","","",""]
[null,4,0,5,9,4,1,null,null,null,null,null,null,null,6,6,null,null,null,null,null,null,null,null,null,null,null,null,null,null,null,1,1,1,1,1,1]
[null,4,0,5,9,3,1,null,null,null,null,null,null,null,1,1,null,null,null,null,null,null,null,null,null,null,null,null,null,null,null,1,0,"","","",""]